bitfinex/quotes_BTCUSD_20251117
["timestamp","ask_amount","ask_price","bid_price","bid_amount"]
[1763392720131,0.00999999,94320.0,94298.0,0.10416178]
[1763392720132,0.01999998,94320.0,94298.0,0.10416178]
[1763392720342,0.01999998,94320.0,94298.0,0.11457796]
[1763392720551,0.01957833,94319.0,94313.0,0.001]
[1763392720816,0.01999998,94320.0,94313.0,0.001]
[1763392721031,0.01999998,94320.0,94298.0,0.11457796]
[1763392721240,0.00999999,94320.0,94298.0,0.09157796]
[1763392721447,0.14758052,94368.0,94298.0,0.09157796]
[1763392721448,0.323,94339.0,94313.0,0.10416178]
[1763392721658,0.01956203,94334.0,94313.0,0.10416178]
[1763392721867,0.323,94339.0,94328.0,0.10416178]
[1763392722538,0.00999999,94340.0,94328.0,0.10416178]
[1763392722718,0.03734,94349.0,94328.0,0.10416178]
[1763392722979,0.01954825,94348.0,94329.0,0.01041618]
[1763392723214,0.07256,94355.0,94329.0,0.01041618]
[1763392723215,0.323,94359.0,94329.0,0.01041618]
[1763392723422,0.05079361,94349.0,94329.0,0.01041618]
[1763392723629,0.03734,94349.0,94328.0,0.10416178]
[1763392723832,0.00999999,94350.0,94349.0,0.00041822]
[1763392724048,0.323,94358.0,94328.0,0.10516178]
[1763392724252,0.323,94358.0,94313.0,0.10416178]
[1763392724253,0.03734,94349.0,94313.0,0.10416178]
[1763392724468,0.61802178,94340.0,94313.0,0.10416178]
[1763392724705,0.60802179,94340.0,94328.0,0.10416178]
[1763392725141,0.61802178,94340.0,94328.0,0.10416178]
[1763392725350,0.61802178,94340.0,94313.0,0.10416178]
[1763392725560,0.323,94339.0,94329.0,0.001]
[1763392725973,0.323,94339.0,94313.0,0.10416178]
[1763392726408,0.323,94339.0,94328.0,0.001]
[1763392726631,0.323,94339.0,94313.0,0.10416178]
[1763392726847,0.61802178,94340.0,94328.0,0.10416178]
[1763392726848,0.00999999,94340.0,94328.0,0.10416178]
[1763392727061,0.323,94349.0,94329.0,0.001]
[1763392727284,0.323,94349.0,94331.0,0.10416178]
[1763392727912,0.00999999,94340.0,94313.0,0.01100356]
[1763392728592,0.00999999,94340.0,94321.0,0.10416178]
[1763392728802,0.323,94349.0,94321.0,0.10416178]
[1763392729013,0.00999999,94340.0,94322.0,0.01041618]
[1763392729246,0.00999999,94340.0,94321.0,0.10416178]
[1763392729766,0.323,94330.0,94328.0,0.001]
[1763392729988,0.323,94330.0,94298.0,0.07132314]
[1763392730214,0.61802178,94350.0,94329.0,0.00097596]
[1763392730215,0.323,94349.0,94329.0,0.00097596]
[1763392730463,0.00999999,94340.0,94322.0,0.001]
[1763392730676,0.01950912,94339.0,94316.0,0.10416178]
[1763392730882,0.01950912,94338.0,94316.0,0.10416178]
[1763392731056,0.01950912,94337.0,94316.0,0.10416178]
[1763392731295,0.00999999,94340.0,94316.0,0.10416178]
[1763392731504,0.323,94359.0,94331.0,0.10416178]
[1763392731710,0.00999999,94350.0,94331.0,0.10416178]
[1763392731914,0.00999999,94340.0,94316.0,0.10416178]
[1763392732116,0.33299999,94340.0,94316.0,0.10416178]
[1763392732342,0.323,94340.0,94331.0,0.10416178]
[1763392732547,0.00999999,94350.0,94331.0,0.10416178]
[1763392732766,0.21187279,94397.0,94331.0,0.10416178]
[1763392732767,0.01472178,94358.0,94347.0,0.10416178]
[1763392732970,0.01950077,94357.0,94347.0,0.10416178]
[1763392733184,0.65536178,94380.0,94347.0,0.10416178]
[1763392733392,0.00999999,94370.0,94347.0,0.10416178]
[1763392733609,0.01950071,94369.0,94347.0,0.10416178]
[1763392734025,0.01950071,94369.0,94362.0,0.10416178]
[1763392734234,0.64536179,94380.0,94362.0,0.10416178]
[1763392734235,0.01456338,94380.0,94362.0,0.10416178]
[1763392734450,0.01950799,94379.0,94374.0,0.10416178]
[1763392734660,0.01950799,94378.0,94374.0,0.10416178]
[1763392734877,0.60802179,94400.0,94374.0,0.10416178]
[1763392735089,0.00999999,94390.0,94375.0,0.01041618]
[1763392735302,0.00999999,94390.0,94374.0,0.10416178]
[1763392735517,0.60802179,94400.0,94374.0,0.10416178]
[1763392735518,0.6223178,94400.0,94374.0,0.10416178]
[1763392735948,0.01429601,94400.0,94374.0,0.05916178]
[1763392736384,0.03687,94409.0,94374.0,0.05916178]
[1763392736597,0.00999999,94400.0,94374.0,0.05916178]
[1763392736811,0.00999999,94400.0,94375.0,0.00591618]
[1763392737021,0.323,94399.0,94348.0,0.04341874]
[1763392737236,0.323,94399.0,94376.0,0.10416178]
[1763392740067,0.323,94399.0,94376.0,0.10516178]
[1763392740285,0.323,94399.0,94376.0,0.10416178]
[1763392740497,0.323,94399.0,94347.0,0.0517423]
[1763392740498,0.08359,94377.0,94347.0,0.0517423]
[1763392740709,0.323,94369.0,94332.0,0.01041618]
[1763392740925,0.03687,94348.0,94280.0,0.2]
[1763392741160,0.03687,94348.0,94260.0,0.60802179]
[1763392741161,0.03687,94348.0,94224.0,0.05257264]
[1763392741162,0.00999999,94340.0,94270.0,0.03186748]
[1763392741372,0.60802179,94290.0,94230.0,0.2]
[1763392741592,0.03687,94299.0,94212.0,0.0009721]
[1763392741593,0.61802178,94270.0,94212.0,0.0009721]
[1763392741845,0.61802178,94270.0,94200.0,0.0002]
[1763392741846,0.323,94269.0,94236.0,0.10416178]
[1763392742057,0.323,94269.0,94200.0,0.01019999]
[1763392742058,0.60802179,94250.0,94200.0,0.0002]
[1763392742475,0.60802179,94250.0,94249.0,0.00320928]
[1763392742688,0.93102179,94250.0,94249.0,0.00320928]
[1763392742899,0.00999999,94230.0,94200.0,0.0002]
[1763392743104,0.323,94229.0,94200.0,0.0002]
[1763392743333,0.00999999,94220.0,94200.0,0.0002]
[1763392743547,0.60802179,94210.0,94200.0,0.0002]
[1763392743793,0.03687,94201.0,94200.0,0.0002]
[1763392744242,0.39517,94209.0,94200.0,0.0002]
[1763392744243,0.323,94209.0,94200.0,0.0002]
[1763392744452,0.07217,94223.0,94200.0,0.0002]
[1763392744453,0.61802178,94230.0,94201.0,0.10416178]
[1763392744677,0.03687,94240.0,94201.0,0.10416178]
[1763392744678,0.00999999,94220.0,94202.0,0.01068424]
[1763392744903,0.62802177,94250.0,94202.0,0.01197618]
[1763392745144,0.61802178,94270.0,94203.0,0.00154]
[1763392745350,0.02912997,94269.0,94204.0,0.04365475]
[1763392745562,0.02912997,94269.0,94202.0,0.33343618]
[1763392745563,0.61802178,94250.0,94205.0,0.04949927]
[1763392745795,0.61802178,94250.0,94200.0,0.0022]
[1763392745796,0.02652548,94249.0,94220.0,0.10416178]
[1763392746030,0.323,94229.0,94200.0,0.0022]
[1763392746268,0.323,94227.0,94200.0,0.0002]
[1763392746684,0.03687,94239.0,94200.0,0.0012]
[1763392746900,0.67802214,94230.0,94200.0,0.0002]
[1763392747113,0.01999998,94220.0,94200.0,0.0002]
[1763392747317,0.00999999,94220.0,94201.0,0.10416178]
[1763392747552,0.68802213,94220.0,94201.0,0.10416178]
[1763392747771,0.323,94233.0,94201.0,0.10416178]
[1763392747772,0.01999998,94240.0,94202.0,0.01043618]
[1763392747975,0.323,94239.0,94202.0,0.01197618]
[1763392748180,0.09869857,94238.0,94202.0,0.01043618]
[1763392748392,0.67802214,94230.0,94202.0,0.01043618]
[1763392748600,0.01999998,94240.0,94201.0,0.10416178]
[1763392748601,0.69802212,94240.0,94228.0,0.00058749]
[1763392748818,0.67802214,94240.0,94203.0,0.0114798]
[1763392749026,0.03687,94247.0,94225.0,0.10416178]
[1763392749236,0.03687,94247.0,94200.0,0.0002]
[1763392749451,0.68802213,94230.0,94205.0,0.10416178]
[1763392749661,0.41833332,94229.0,94201.0,0.001]
[1763392749874,0.67802214,94211.0,94200.0,0.0002]
[1763392750133,0.68802213,94200.0,94130.0,0.2]
[1763392750338,0.67802214,94200.0,94143.0,0.323]
[1763392750548,1.02102212,94210.0,94143.0,0.323]
[1763392750759,0.67802214,94200.0,94182.0,0.10416178]
[1763392750966,0.10416178,94228.0,94182.0,0.10416178]
[1763392750967,0.01999998,94220.0,94182.0,0.10416178]
[1763392751191,0.323,94219.0,94183.0,0.00021662]
[1763392751474,0.323,94219.0,94201.0,0.001]
[1763392752189,0.00999999,94210.0,94201.0,0.001]
[1763392752403,0.01265774,94209.0,94201.0,0.001]
[1763392752612,0.01265774,94209.0,94168.0,0.10416178]
[1763392752613,0.01999998,94200.0,94168.0,0.10416178]
[1763392752817,0.69802212,94200.0,94182.0,0.002]
[1763392753045,0.19420428,94199.0,94182.0,0.002]
[1763392753249,0.19420428,94199.0,94120.0,0.87802214]
[1763392753250,0.07217,94199.0,94140.0,0.00999999]
[1763392753458,0.323,94197.0,94132.0,0.00552605]
[1763392753670,0.00999999,94180.0,94132.0,0.00552605]
[1763392753888,0.00999999,94170.0,94133.0,0.00027037]
[1763392754099,0.01999998,94160.0,94123.0,0.10416178]
[1763392754536,0.323,94167.0,94123.0,0.10416178]
[1763392754537,0.323,94167.0,94159.0,0.00251644]
[1763392754748,0.323,94167.0,94123.0,0.10416178]
[1763392754749,0.01999998,94160.0,94123.0,0.10416178]
[1763392754958,0.68802213,94150.0,94123.0,0.10416178]
[1763392755188,0.10416178,94149.0,94123.0,0.10416178]
[1763392755393,0.45371543,94149.0,94117.0,0.00552605]
[1763392755595,0.48283337,94148.0,94117.0,0.00552605]
[1763392755802,0.48501608,94148.0,94117.0,0.00552605]
[1763392756025,0.00999999,94140.0,94117.0,0.00552605]
[1763392756235,0.01999998,94140.0,94117.0,0.00552605]
[1763392756521,0.323,94138.0,94117.0,0.00552605]
[1763392756725,0.03687,94115.0,94104.0,0.86168783]
[1763392757144,0.00979991,94120.0,94105.0,0.10366938]
[1763392757350,0.00979991,94130.0,94104.0,0.82590342]
[1763392757999,0.70270692,94140.0,94104.0,0.82590342]
[1763392758000,0.00999999,94140.0,94104.0,0.82590342]
[1763392758248,0.67802214,94150.0,94131.0,0.10416178]
[1763392758249,0.00979991,94150.0,94131.0,0.10416178]
[1763392758460,0.00979991,94150.0,94105.0,0.00665]
[1763392758461,0.00979991,94140.0,94105.0,0.11081178]
[1763392758664,0.00979991,94140.0,94106.0,0.10366938]
[1763392759351,0.00979991,94140.0,94120.0,0.10416178]
[1763392759594,0.36014,94148.0,94120.0,0.10416178]
[1763392759595,0.323,94148.0,94120.0,0.10416178]
[1763392759829,0.323,94148.0,94107.0,0.00665]
[1763392759830,0.01991362,94147.0,94107.0,0.00665]
[1763392760042,0.1240754,94147.0,94107.0,0.00665]
[1763392760265,0.68782205,94140.0,94105.0,0.10416178]
[1763392760499,0.00999999,94120.0,94106.0,0.002]
[1763392760726,0.34492362,94139.0,94106.0,0.002]
[1763392760727,0.01804304,94138.0,94106.0,0.002]
[1763392760948,0.323,94139.0,94105.0,0.10416178]
[1763392761180,0.00999999,94160.0,94137.0,0.00313207]
[1763392761410,0.01463253,94162.0,94136.0,0.0355]
[1763392761664,0.06368857,94167.0,94136.0,0.0355]
[1763392761896,0.67802214,94160.0,94122.0,0.21077178]
[1763392762118,0.03714,94167.0,94123.0,0.09218718]
[1763392762341,0.01426758,94164.0,94124.0,0.07111]
[1763392762563,0.01852574,94163.0,94124.0,0.07111]
[1763392762790,0.01852574,94163.0,94122.0,0.0355]
[1763392762791,0.68802213,94160.0,94122.0,0.0355]
[1763392763033,0.323,94147.0,94109.0,0.07111]
[1763392763258,0.323,94147.0,94100.0,0.453009]
[1763392763259,0.00999999,94130.0,94100.0,0.453009]
[1763392763507,0.03414,94129.0,94100.0,0.453009]
[1763392763733,0.01649174,94128.0,94124.0,0.001]
[1763392763983,0.01649174,94128.0,94100.0,0.453009]
[1763392763984,0.01762274,94127.0,94100.0,0.453009]
[1763392764251,0.01762274,94127.0,94104.0,0.74690342]
[1763392764252,0.00999999,94120.0,94104.0,0.74690342]
[1763392764479,0.13043108,94119.0,94104.0,0.74690342]
[1763392764707,0.20505108,94119.0,94104.0,0.74690342]
[1763392764927,0.07462,94118.0,94104.0,0.74690342]
[1763392765176,0.02656268,94117.0,94104.0,0.54690342]
[1763392765851,0.02656268,94117.0,94104.0,0.54890342]
[1763392766072,0.00999999,94120.0,94104.0,0.54890342]
[1763392766281,0.02095799,94126.0,94104.0,0.54690342]
[1763392766499,0.08461999,94120.0,94104.0,0.54990342]
[1763392766744,0.00999999,94130.0,94104.0,0.54990342]
[1763392766966,0.10416178,94129.0,94104.0,0.54990342]
[1763392767177,0.20534107,94129.0,94104.0,0.54990342]
[1763392767384,0.09305949,94129.0,94104.0,0.54690342]
[1763392767589,0.02655929,94129.0,94104.0,0.54990342]
[1763392767811,0.10117929,94129.0,94104.0,0.54990342]
[1763392768023,0.00999999,94120.0,94104.0,0.54990342]
[1763392768653,0.01772062,94126.0,94104.0,0.54990342]
[1763392768860,0.00999999,94120.0,94104.0,0.54990342]
[1763392769075,0.02620686,94119.0,94104.0,0.54690342]
[1763392769331,0.03414,94105.0,94104.0,0.54690342]
[1763392769540,0.03414,94105.0,94104.0,0.54890342]
[1763392769768,0.43176,94105.0,94104.0,0.54690342]
[1763392769980,0.43176,94105.0,94104.0,0.54890342]
[1763392770401,0.43176,94105.0,94104.0,0.54690342]
[1763392770861,0.43176,94105.0,94104.0,0.54990342]
[1763392771285,3.47517874,94105.0,94104.0,0.54990342]
[1763392771513,3.47517874,94105.0,94104.0,0.47690342]
[1763392771514,3.48517874,94105.0,94104.0,0.47690342]
[1763392771728,3.48517874,94105.0,94030.0,0.02127]
[1763392771729,0.00999999,94070.0,94030.0,0.02127]
[1763392771971,0.00999999,94070.0,94033.0,0.07399]
[1763392772183,0.0126,94078.0,94020.0,0.2]
[1763392772184,0.00999999,94060.0,94020.0,0.12416]
[1763392772398,0.00999999,94050.0,94020.0,0.140126]
[1763392772630,0.02658188,94049.0,94021.0,0.09916178]
[1763392772843,0.00999999,94040.0,94021.0,0.02127]
[1763392773336,0.11595888,94049.0,94039.0,0.00587792]
[1763392773564,0.00999999,94040.0,94020.0,0.12416]
[1763392773787,0.00999999,94040.0,94021.0,0.10416178]
[1763392774257,0.014757,94049.0,94021.0,0.10416178]
[1763392774502,0.01149288,94048.0,94022.0,0.04458]
[1763392774732,0.01530974,94062.0,94022.0,0.04458]
[1763392774999,0.004,94050.0,94022.0,0.04458]
[1763392775257,0.004,94050.0,94023.0,0.016874]
[1763392775525,0.004,94040.0,94020.0,0.12416]
[1763392775792,0.17878178,94049.0,94020.0,0.12416]
[1763392775793,0.004,94030.0,94020.0,0.12416]
[1763392776057,0.004,94030.0,94021.0,0.005]
[1763392776320,0.004,94030.0,94020.0,0.12416]
[1763392776321,0.03552,94021.0,94020.0,0.12416]
[1763392776813,0.43314,94021.0,94020.0,0.12416]
[1763392777068,0.47655874,94021.0,94020.0,0.12416]
[1763392777347,0.43314,94021.0,94020.0,0.12416]
[1763392777624,0.004,94030.0,94020.0,0.12716]
[1763392778452,0.02427599,94038.0,94020.0,0.12716]
[1763392778908,0.004,94030.0,94020.0,0.10816]
[1763392779374,0.01353605,94036.0,94029.0,0.00615843]
[1763392779578,0.01353605,94036.0,94001.0,0.10416178]
[1763392779579,0.004,94020.0,94001.0,0.01898021]
[1763392779780,0.323,94046.0,94001.0,0.01898021]
[1763392779781,0.004,94030.0,94020.0,0.004]
[1763392780097,0.004,94030.0,94002.0,0.04458]
[1763392780313,0.004,94030.0,94003.0,0.04458]
[1763392780526,0.004,94030.0,94020.0,0.004]
[1763392780729,0.004,94030.0,94003.0,0.04458]
[1763392780995,0.004,94030.0,94003.0,0.04480183]
[1763392781203,0.004,94030.0,94001.0,0.01898021]
[1763392781624,0.323,94039.0,94001.0,0.01898021]
[1763392781625,0.02658528,94037.0,94002.0,0.04458]
[1763392781832,0.004,94040.0,94016.0,0.10416178]
[1763392782296,0.004,94030.0,94002.0,0.04458]
[1763392782506,0.004,94040.0,94002.0,0.05395025]
[1763392782731,0.004,94020.0,94001.0,0.10416178]
[1763392782953,0.004,94030.0,94002.0,0.04458]
[1763392783172,0.004,94040.0,94016.0,0.10416178]
[1763392783389,0.004,94050.0,94017.0,0.01041618]
[1763392783604,0.12329052,94058.0,94018.0,0.04458]
[1763392783821,0.323,94057.0,94018.0,0.04458]
[1763392784039,0.01879948,94056.0,94018.0,0.04458]
[1763392784267,0.02562374,94055.0,94017.0,0.10416178]
[1763392784484,0.02658019,94055.0,94032.0,0.10416178]
[1763392784698,0.02062698,94100.0,94019.0,0.04458]
[1763392784699,0.07462,94058.0,94019.0,0.04458]
[1763392784898,0.004,94040.0,94017.0,0.10716178]
[1763392785105,0.004,94040.0,94018.0,0.01071618]
[1763392785325,0.004,94040.0,94017.0,0.15174178]
[1763392785760,0.004,94040.0,94018.0,0.04458]
[1763392785981,0.02658301,94045.0,94018.0,0.04458]
[1763392785982,0.004,94050.0,94018.0,0.04458]
[1763392786201,0.004,94040.0,94017.0,0.10416178]
[1763392786421,0.004,94040.0,94018.0,0.01241618]
[1763392786645,0.004,94040.0,94019.0,0.02127]
[1763392786865,0.004,94040.0,94002.0,0.10366938]
[1763392786866,0.004,94040.0,94027.0,0.10416178]
[1763392787092,0.02657906,94059.0,94027.0,0.10416178]
[1763392787337,0.004,94050.0,94028.0,0.01898349]
[1763392787552,0.02657849,94061.0,94029.0,0.02127]
[1763392787781,0.004,94050.0,94031.0,0.02127]
[1763392788003,0.004,94050.0,94033.0,0.02127]
[1763392788215,0.004,94050.0,94035.0,0.02127]
[1763392788437,0.004,94050.0,94037.0,0.02127]
[1763392788731,0.004,94050.0,94029.0,0.02127]
[1763392789192,0.10416178,94060.0,94031.0,0.02127]
[1763392789409,0.03552,94074.0,94033.0,0.02127]
[1763392789630,0.10416178,94063.0,94034.0,0.01683268]
[1763392789862,0.01980223,94062.0,94037.0,0.004]
[1763392790082,0.01980223,94062.0,94037.0,0.01683215]
[1763392790333,0.01522897,94066.0,94037.0,0.08944188]
[1763392790567,0.01522897,94066.0,94038.0,0.01683196]
[1763392790568,0.10416178,94063.0,94038.0,0.01683196]
[1763392790784,0.02657821,94062.0,94038.0,0.01683196]
[1763392791260,0.09034374,94062.0,94037.0,0.003]
[1763392791475,0.10119821,94062.0,94037.0,0.003]
[1763392791697,0.10416178,94047.0,94037.0,0.003]
[1763392791901,0.03552,94038.0,94037.0,0.003]
[1763392792103,0.418156,94061.0,94037.0,0.003]
[1763392792104,0.02657906,94059.0,94037.0,0.003]
[1763392792310,0.02657906,94059.0,94029.0,0.03810358]
[1763392792513,0.04537408,94058.0,94029.0,0.01683358]
[1763392792715,0.04537408,94058.0,94018.0,0.10416178]
[1763392792716,0.10416178,94048.0,94037.0,0.003]
[1763392792889,0.11999408,94058.0,94021.0,0.09096105]
[1763392792890,0.10416178,94046.0,94021.0,0.09096105]
[1763392793098,0.01844624,94045.0,94021.0,0.09096105]
[1763392793300,0.323,94062.0,94037.0,0.003]
[1763392793501,0.10416178,94058.0,94021.0,0.09097245]
[1763392793727,0.02657962,94057.0,94021.0,0.07412604]
[1763392793933,0.02657962,94057.0,94037.0,0.003]
[1763392794152,0.02657962,94057.0,94019.0,0.10416178]
[1763392794153,0.07462,94056.0,94019.0,0.10416178]
[1763392794376,0.02658019,94055.0,94020.0,0.01683519]
[1763392794600,0.01661023,94055.0,94021.0,0.0177537]
[1763392794819,0.07664,94057.0,94019.0,0.10416178]
[1763392795039,0.07664,94057.0,94020.0,0.03381149]
[1763392795262,0.01990799,94056.0,94020.0,0.0391688]
[1763392795480,0.02657877,94060.0,94034.0,0.10416178]
[1763392795707,0.02657877,94060.0,94037.0,0.002]
[1763392795923,0.323,94068.0,94037.0,0.01790349]
[1763392796215,0.04593671,94067.0,94037.0,0.01790349]
[1763392796437,0.10416178,94094.0,94049.0,0.10416178]
[1763392796438,0.01546152,94074.0,94049.0,0.10416178]
[1763392796885,0.02626574,94084.0,94050.0,0.09088049]
[1763392797115,0.07664,94081.0,94051.0,0.02224342]
[1763392797339,0.07664,94081.0,94039.0,0.10416178]
[1763392797340,0.01514924,94080.0,94056.0,0.10416178]
[1763392797608,0.01936372,94079.0,94057.0,0.01576538]
[1763392797845,0.01592099,94085.0,94039.0,0.10416178]
[1763392797846,0.02657369,94078.0,94039.0,0.10416178]
[1763392798073,0.00970212,94077.0,94041.0,0.0178948]
[1763392798333,0.03560186,94076.0,94042.0,0.02008966]
[1763392798540,0.00970212,94075.0,94043.0,0.01305599]
[1763392798757,0.02657482,94074.0,94043.0,0.01305599]
[1763392798964,0.05262654,94086.0,94054.0,0.10416178]
[1763392798965,0.00971491,94073.0,94054.0,0.10416178]
[1763392799167,0.10416178,94084.0,94055.0,0.10416178]
[1763392799377,0.05262654,94086.0,94056.0,0.02126392]
[1763392799378,0.0191679,94083.0,94056.0,0.02126392]
[1763392799584,0.01558654,94086.0,94055.0,0.10416178]
[1763392799753,0.01333035,94104.0,94057.0,0.0124341]
[1763392799975,0.10416178,94121.0,94055.0,0.10416178]
[1763392799976,0.03704,94113.0,94055.0,0.10416178]
[1763392800143,0.03704,94113.0,94058.0,0.02126347]
[1763392800144,0.10416178,94106.0,94058.0,0.02126347]
[1763392800349,0.10416178,94091.0,94059.0,0.10416178]
[1763392800570,0.0191679,94090.0,94059.0,0.10416178]
[1763392800943,0.01521486,94104.0,94043.0,0.03029139]
[1763392801155,0.01521486,94104.0,94085.0,0.10416178]
[1763392801424,0.02655675,94138.0,94103.0,0.01241]
[1763392801641,0.01557568,94123.0,94103.0,0.01241]
[1763392801856,0.10416178,94121.0,94094.0,0.01241]
[1763392802072,0.13072361,94120.0,94094.0,0.01241]
[1763392802293,0.13072361,94120.0,94076.0,0.01241]
[1763392802294,0.10416178,94105.0,94076.0,0.01241]
[1763392802553,0.13072813,94104.0,94076.0,0.01241]
[1763392802753,0.13072813,94104.0,94054.0,0.10416178]
[1763392802754,0.04341874,94102.0,94054.0,0.10416178]
[1763392802986,0.323,94100.0,94055.0,0.00776983]
[1763392803222,0.09670849,94099.0,94094.0,0.002]
[1763392803450,0.36641874,94096.0,94094.0,0.002]
[1763392803651,0.36641874,94096.0,94044.0,0.01241]
[1763392803652,0.04341874,94094.0,94044.0,0.01241]
[1763392803916,0.10416178,94074.0,94044.0,0.01241]
[1763392804135,0.3492545,94073.0,94037.0,0.01241]
[1763392804356,0.323,94069.0,94025.0,0.01241]
[1763392804570,0.03704,94073.0,94038.0,0.10416178]
[1763392804778,0.03704,94081.0,94039.0,0.02041772]
[1763392805021,0.02475224,94080.0,94053.0,0.10416178]
[1763392805287,0.02475224,94080.0,94054.0,0.01869322]
[1763392805499,0.01502887,94079.0,94055.0,0.0122855]
[1763392805729,0.03704,94081.0,94056.0,0.01384499]
[1763392805730,0.01946548,94080.0,94056.0,0.01384499]
[1763392805971,0.36641874,94103.0,94055.0,0.0122855]
[1763392805972,0.07664,94106.0,94057.0,0.01105895]
[1763392806181,0.02117249,94103.0,94057.0,0.01105895]
[1763392806420,0.00582125,94102.0,94078.0,0.10416178]
[1763392806645,0.07664,94114.0,94054.0,0.10416178]
[1763392806646,0.07664,94114.0,94081.0,0.10416178]
[1763392806852,0.10416178,94119.0,94054.0,0.04578154]
[1763392807024,0.01402124,94118.0,94082.0,0.10416178]
[1763392807266,0.10416178,94117.0,94083.0,0.01041618]
[1763392807481,0.13072446,94117.0,94041.0,0.323]
[1763392807744,0.10416178,94102.0,94070.0,0.10416178]
[1763392807956,0.02656719,94101.0,94055.0,0.10416178]
[1763392808169,0.09309762,94101.0,94070.0,0.10416178]
[1763392808380,0.10416178,94100.0,94071.0,0.01041618]
[1763392808597,0.02576324,94099.0,94071.0,0.01041618]
[1763392808815,0.10416178,94117.0,94071.0,0.01041618]
[1763392808816,0.07664,94127.0,94086.0,0.10416178]
[1763392809063,0.03704,94146.0,94086.0,0.10416178]
[1763392809301,0.01548647,94136.0,94086.0,0.10416178]
[1763392809504,0.03704,94146.0,94087.0,0.01141618]
[1763392809505,0.02655478,94145.0,94087.0,0.01141618]
[1763392809711,0.01940192,94144.0,94087.0,0.33441618]
[1763392809924,0.02079824,94143.0,94090.0,0.00999999]
[1763392810144,0.01511062,94157.0,94090.0,0.00999999]
[1763392810379,0.01511062,94157.0,94087.0,0.33441618]
[1763392810380,0.01940285,94156.0,94109.0,0.10416178]
[1763392810593,0.10416178,94144.0,94110.0,0.01041618]
[1763392810828,0.02305874,94143.0,94087.0,0.01141618]
[1763392811046,0.34605874,94143.0,94106.0,0.10416178]
[1763392811263,0.323,94143.0,94106.0,0.10416178]
[1763392812012,0.10416178,94127.0,94086.0,0.10416178]
[1763392812234,0.323,94126.0,94087.0,0.002]
[1763392812473,0.39964,94126.0,94087.0,0.002]
[1763392812751,0.10416178,94142.0,94101.0,0.10416178]
[1763392812991,0.35449227,94141.0,94101.0,0.10416178]
[1763392813204,0.0004,94160.0,94102.0,0.01041618]
[1763392813426,0.03980072,94155.0,94117.0,0.10416178]
[1763392813658,0.02043974,94155.0,94117.0,0.10416178]
[1763392813883,0.0004,94160.0,94117.0,0.10416178]
[1763392814107,0.0004,94160.0,94137.0,0.10416178]
[1763392814635,0.0004,94160.0,94138.0,0.00024885]
[1763392815060,0.10416178,94158.0,94103.0,0.0114578]
[1763392815266,0.10416178,94158.0,94101.0,0.01873974]
[1763392815267,0.02491762,94157.0,94129.0,0.10016178]
[1763392815922,0.34791762,94157.0,94106.0,0.002]
[1763392816140,0.323,94157.0,94120.0,0.10416178]
[1763392816364,0.10416178,94143.0,94101.0,0.01873974]
[1763392816591,0.02655562,94142.0,94129.0,0.003]
[1763392816809,0.02655562,94142.0,94101.0,0.01873974]
[1763392817049,0.02655196,94155.0,94130.0,0.10416178]
[1763392817267,0.01862725,94160.0,94131.0,0.01041618]
[1763392817480,0.10416178,94159.0,94130.0,0.10416178]
[1763392817702,0.01447124,94158.0,94130.0,0.10416178]
[1763392818151,0.0004,94160.0,94130.0,0.10416178]
[1763392818617,0.0004,94160.0,94131.0,0.00104579]
[1763392819300,0.0004,94160.0,94151.0,0.10416178]
[1763392819494,0.0004,94160.0,94131.0,0.01041618]
[1763392819771,0.0004,94160.0,94101.0,0.01873974]
[1763392819772,0.323,94158.0,94101.0,0.01873974]
[1763392819986,0.10416178,94144.0,94101.0,0.01873974]
[1763392820201,0.02655534,94143.0,94131.0,0.002]
[1763392820413,0.02655168,94156.0,94131.0,0.002]
[1763392820635,0.02655168,94156.0,94132.0,0.10416178]
[1763392820912,0.0004,94160.0,94133.0,0.01061618]
[1763392820913,0.02655139,94157.0,94133.0,0.01061618]
[1763392821172,0.0004,94160.0,94133.0,0.01061618]
[1763392821383,0.0004,94160.0,94158.0,0.10416178]
[1763392822010,0.0004,94160.0,94131.0,0.10416178]
[1763392822182,0.0004,94160.0,94132.0,0.01041618]
[1763392822386,0.0004,94160.0,94131.0,0.06657796]
[1763392822804,0.10416178,94184.0,94132.0,0.10635]
[1763392823004,0.01745698,94183.0,94132.0,0.12595064]
[1763392823219,0.01745698,94183.0,94158.0,0.003]
[1763392823425,0.01745698,94183.0,94148.0,0.01568098]
[1763392823625,0.01745698,94183.0,94149.0,0.01198428]
[1763392823828,0.01558251,94187.0,94149.0,0.01198428]
[1763392823829,0.01558251,94187.0,94150.0,0.01928999]
[1763392824038,0.03704,94209.0,94162.0,0.10416178]
[1763392824286,0.03704,94230.0,94186.0,0.03545]
[1763392824287,0.03815,94219.0,94186.0,0.03545]
[1763392824503,0.10416178,94224.0,94186.0,0.03545]
[1763392824504,0.10416178,94207.0,94186.0,0.03545]
[1763392824710,0.10416178,94192.0,94171.0,0.03545]
[1763392824919,0.02654181,94191.0,94171.0,0.03545]
[1763392825118,0.02308424,94191.0,94171.0,0.03545]
[1763392825327,0.02083161,94198.0,94171.0,0.03545]
[1763392825663,0.10416178,94192.0,94171.0,0.03545]
[1763392825869,0.02654181,94191.0,94151.0,0.0709]
[1763392826184,0.02654181,94191.0,94171.0,0.002]
[1763392826385,0.02395424,94205.0,94171.0,0.002]
[1763392826617,0.33375083,94206.0,94172.0,0.03545]
[1763392826618,0.01075083,94206.0,94172.0,0.03545]
[1763392826770,0.02653786,94205.0,94173.0,0.01697718]
[1763392826979,0.04745777,94204.0,94173.0,0.01697718]
[1763392827228,0.04745777,94204.0,94174.0,0.0709]
[1763392827229,0.01355174,94204.0,94174.0,0.0709]
[1763392827430,0.07515,94223.0,94174.0,0.0709]
[1763392827431,0.07515,94223.0,94177.0,0.10416178]
[1763392827631,0.02653758,94206.0,94178.0,0.01431824]
[1763392827895,0.02653758,94206.0,94172.0,0.03545]
[1763392827896,0.02653758,94206.0,94175.0,0.01431915]
[1763392828095,0.02653758,94206.0,94173.0,0.01431915]
[1763392828305,0.01584224,94206.0,94173.0,0.08521915]
[1763392828524,0.01055624,94206.0,94172.0,0.03545]
[1763392828724,0.01051237,94206.0,94166.0,0.10416178]
[1763392828928,0.07515,94205.0,94171.0,0.002]
[1763392829127,0.10416178,94207.0,94171.0,0.002]